bitfinex/quotes_SOLUSD_20241121
["timestamp","ask_amount","ask_price","bid_price","bid_amount"]
[1732207084998,15.52081622,249.8,249.72,11.51761622]
[1732207085287,4.0032,249.8,249.72,11.51761622]
[1732207085554,20.6356,249.85,249.74,11.51761622]
[1732207085754,36.15561622,249.85,249.76,11.51761622]
[1732207086767,24.638,249.85,249.76,15.52131622]
[1732207089856,24.638,249.85,249.76,11.51761622]
[1732207090238,24.638,249.85,249.73,11.51761622]
[1732207090239,11.51761622,249.83,249.73,11.51761622]
[1732207090746,34.644,249.85,249.7,4.0046]
[1732207090747,11.51761622,249.8,249.7,15.52221622]
[1732207091456,11.51761622,249.8,249.72,11.51761622]
[1732207091655,34.644,249.85,249.72,11.51761622]
[1732207091656,11.51761622,249.82,249.72,11.51761622]
[1732207091852,11.51761622,249.82,249.73,4.0043]
[1732207091853,4.003,249.81,249.73,4.0043]
[1732207092055,4.003,249.81,249.71,15.52211622]
[1732207092255,11.51761622,249.8,249.71,15.52211622]
[1732207092454,11.51761622,249.8,249.7,10.012]
[1732207092455,11.51761622,249.78,249.7,10.012]
[1732207092672,4.003,249.81,249.7,10.012]
[1732207092846,11.51761622,249.77,249.7,10.012]
[1732207093048,11.51761622,249.79,249.7,14.0168]
[1732207093858,4.0035,249.78,249.7,14.0168]
[1732207094644,11.51761622,249.82,249.73,11.51761622]
[1732207094866,11.51761622,249.8,249.71,11.51761622]
[1732207095059,11.51761622,249.8,249.72,23.776884]
[1732207095773,15.52081622,249.8,249.73,4.0043]
[1732207097687,15.52081622,249.8,249.71,15.52211622]
[1732207097748,15.52081622,249.8,249.71,25.53371622]
[1732207100250,4.0029,249.82,249.75,11.51761622]
[1732207100867,4.0029,249.82,249.73,11.51761622]
[1732207100868,11.51761622,249.81,249.73,11.51761622]
[1732207101076,11.51761622,249.79,249.71,25.53371622]
[1732207102180,15.52101622,249.79,249.71,25.53371622]
[1732207102364,11.51761622,249.77,249.69,11.51761622]
[1732207102555,11.51761622,249.75,249.67,11.51761622]
[1732207102871,11.51761622,249.73,249.66,10.0134]
[1732207103677,11.51761622,249.73,249.65,11.51761622]
[1732207103888,14.0118,249.79,249.63,11.51761622]
[1732207103889,11.51761622,249.71,249.63,11.51761622]
[1732207104112,4.0051,249.68,249.62,10.0151]
[1732207104283,4.0051,249.68,249.57,22.3819]
[1732207104284,11.51761622,249.67,249.59,11.51761622]
[1732207104487,11.51761622,249.65,249.59,11.51761622]
[1732207105004,4.0051,249.68,249.59,11.51761622]
[1732207105005,11.51761622,249.67,249.59,11.51761622]
[1732207105503,11.51761622,249.69,249.61,11.51761622]
[1732207105789,15.52231622,249.71,249.61,11.51761622]
[1732207106168,11.51761622,249.69,249.61,11.51761622]
[1732207106369,4.0047,249.71,249.61,11.51761622]
[1732207106688,4.0047,249.71,249.62,4.006]
[1732207106689,11.51761622,249.7,249.62,4.006]
[1732207107593,11.51761622,249.68,249.62,4.006]
[1732207107761,11.51761622,249.68,249.61,23.776884]
[1732207108481,20.533,249.72,249.63,11.51761622]
[1732207108482,15.52231622,249.71,249.63,11.51761622]
[1732207108667,15.52191622,249.73,249.65,11.51761622]
[1732207109283,4.0043,249.73,249.65,11.51761622]
[1732207109484,21.8618,249.78,249.65,11.51761622]
[1732207109666,11.51761622,249.84,249.71,11.51761622]
[1732207109667,11.51761622,249.79,249.71,11.51761622]
[1732207109983,11.51761622,249.79,249.69,11.51761622]
[1732207110781,11.51761622,249.75,249.67,11.51761622]
[1732207111165,11.51761622,249.75,249.65,11.51761622]
[1732207111860,4.0041,249.74,249.65,11.51761622]
[1732207112077,11.51761622,249.73,249.65,4.0055]
[1732207112388,11.51761622,249.73,249.65,15.52311622]
[1732207113169,15.52201622,249.73,249.65,15.52311622]
[1732207113692,4.0044,249.73,249.65,15.52311622]
[1732207114175,4.0044,249.73,249.64,10.0143]
[1732207114176,11.51761622,249.71,249.64,10.0143]
[1732207114379,11.51761622,249.69,249.64,10.0143]
[1732207116164,4.0014,249.91,249.67,43.776884]
[1732207116365,4.0014,249.91,249.78,174.21761622]
[1732207116574,11.51761622,249.89,249.78,11.51761622]
[1732207117375,11.51761622,249.96,249.77,4.0035]
[1732207117376,11.51761622,249.87,249.77,4.0035]
[1732207117587,11.51761622,249.85,249.76,4.0037]
[1732207117785,11.51761622,249.85,249.75,14.0136]
[1732207118882,4.0025,249.84,249.75,14.0136]
[1732207119093,11.51761622,249.83,249.75,10.0096]
[1732207119286,11.51761622,249.83,249.75,14.0136]
[1732207119591,4.0025,249.84,249.75,14.0136]
[1732207120595,4.0025,249.84,249.7,10.0118]
[1732207120596,11.51761622,249.79,249.7,10.0118]
[1732207120974,11.51761622,249.77,249.68,11.51761622]
[1732207122488,4.0038,249.76,249.66,25.53661622]
[1732207123203,21.9308,249.96,249.81,162.7]
[1732207123500,8.8743,250.01,249.94,11.51761622]
[1732207123501,12.8742,250.01,249.94,11.51761622]
[1732207123684,3.9999,250.01,249.96,11.51761622]
[1732207124398,3.9995,250.03,249.96,11.51761622]
[1732207124792,21.9308,250.04,249.96,23.94595937]
[1732207125115,3.9992,250.05,249.96,23.94595937]
[1732207125318,19.94535937,249.98,249.95,10.0019]
[1732207126398,19.94535937,250.0,249.95,10.0019]
[1732207128287,19.94535937,250.02,249.92,19.94535937]
[1732207128476,19.94535937,250.0,249.93,23.776884]
[1732207128798,19.94535937,250.0,249.91,23.776884]
[1732207129177,19.94535937,250.0,249.92,14.0044]
[1732207129504,19.94535937,250.02,249.93,23.776884]
[1732207129813,3.9996,250.03,249.93,23.776884]
[1732207129814,19.94535937,250.0,249.93,23.776884]
[1732207130193,19.94535937,250.02,249.93,23.776884]
[1732207130503,19.94535937,250.02,249.88,4.0018]
[1732207130504,19.94535937,249.98,249.88,4.0018]
[1732207131292,3.9998,250.02,249.9,19.94535937]
[1732207131293,19.94535937,250.0,249.9,19.94535937]
[1732207131493,4.0001,249.99,249.9,19.94535937]
[1732207132011,4.0001,249.99,249.92,19.94535937]
[1732207132364,19.94535937,250.04,249.96,19.94535937]
[1732207132490,3.999,250.06,249.98,19.94535937]
[1732207132807,23.94435937,250.06,249.98,19.94535937]
[1732207133195,23.94435937,250.06,249.96,19.94535937]
[1732207134580,3.999,250.06,250.0,19.94535937]
[1732207134785,3.999,250.06,249.98,19.94535937]
[1732207135021,19.94535937,250.0,249.82,35.69571185]
[1732207135257,19.94535937,250.0,249.91,19.94535937]
[1732207135888,19.94535937,249.98,249.89,19.94535937]
[1732207136206,19.94535937,249.96,249.87,19.94535937]
[1732207136399,19.94535937,249.96,249.88,4.15354306]
[1732207136597,4.0008,249.95,249.88,4.15354306]
[1732207138209,19.94535937,249.93,249.88,4.15354306]
[1732207138436,4.0003,249.98,249.86,8.1541522]
[1732207138639,19.94535937,249.94,249.86,8.15406636]
[1732207139312,23.94625937,249.94,249.86,8.15406636]
[1732207139531,19.94535937,249.92,249.86,8.15406636]
[1732207140031,23.94625937,249.94,249.86,8.15406636]
[1732207140230,23.94625937,249.94,249.86,4.15196636]
[1732207140231,19.94535937,249.92,249.86,4.15196636]
[1732207140422,19.94535937,249.92,249.85,10.0059]
[1732207141428,23.94665937,249.92,249.85,10.0059]
[1732207142836,23.94635937,249.94,249.85,29.95125937]
[1732207143011,19.94535937,249.96,249.87,19.94535937]
[1732207143222,19.94535937,249.94,249.85,29.95125937]
[1732207144360,4.0011,249.93,249.85,33.95365937]
[1732207144539,19.94535937,249.92,249.85,14.0083]
[1732207144970,19.94535937,249.92,249.83,19.94535937]
[1732207145125,19.94535937,249.88,249.81,23.776884]
[1732207145717,19.94535937,249.88,249.8,23.776884]
[1732207145942,19.94535937,249.88,249.81,14.0105]
[1732207146722,11.52263432,249.88,249.81,14.0105]
[1732207153148,11.52263432,249.88,249.77,4.90196982]
[1732207153326,11.52263432,249.78,249.69,10.0121]
[1732207153531,11.52263432,249.76,249.69,10.0121]
[1732207153732,31.0742,249.87,249.72,11.52263432]
[1732207154046,11.52263432,249.81,249.72,11.52263432]
[1732207154262,31.0742,249.87,249.7,11.52263432]
[1732207154473,11.52263432,249.79,249.7,25.53943432]
[1732207154944,11.52263432,249.81,249.72,11.52263432]
[1732207155249,11.52263432,249.83,249.74,11.52263432]
[1732207155431,11.52263432,249.85,249.76,11.52263432]
[1732207155638,11.52263432,249.85,249.77,23.776884]
[1732207156226,4.0022,249.86,249.78,11.52263432]
[1732207156434,4.0022,249.86,249.78,15.52593432]
[1732207159046,11.52263432,249.85,249.78,4.0033]
[1732207160251,11.52263432,249.85,249.77,10.0091]
[1732207160252,11.52263432,249.83,249.77,10.0091]
[1732207161136,11.52263432,249.83,249.74,11.52263432]
[1732207161336,11.52263432,249.81,249.74,14.0144]
[1732207161537,11.52263432,249.79,249.7,15.52733432]
[1732207162538,11.52263432,249.79,249.7,11.52263432]
[1732207162853,11.52263432,249.79,249.7,21.53463432]
[1732207163235,4.0035,249.78,249.7,25.53943432]
[1732207163778,10.0068,249.83,249.72,11.52263432]
[1732207163779,11.52263432,249.81,249.72,11.52263432]
[1732207164007,4.0033,249.8,249.72,11.52263432]
[1732207164143,24.0033,249.8,249.72,11.52263432]
[1732207164636,4.0029,249.82,249.74,11.52263432]
[1732207164832,24.0029,249.82,249.74,11.52263432]
[1732207165478,11.52263432,249.81,249.73,27.781084]
[1732207166855,4.0031,249.81,249.74,11.52263432]
[1732207168150,4.0026,249.84,249.76,11.52263432]
[1732207168357,24.0026,249.84,249.76,11.52263432]
[1732207168539,21.86,249.92,249.83,11.52263432]
[1732207168735,11.52263432,249.94,249.85,11.52263432]
[1732207169963,4.0011,249.93,249.85,11.52263432]
[1732207170140,24.0011,249.93,249.85,11.52263432]
[1732207170656,11.52263432,249.9,249.81,11.52263432]
[1732207170851,11.52263432,249.9,249.79,15.52593432]
[1732207171159,11.52263432,249.9,249.82,23.776884]
[1732207171361,11.52263432,249.92,249.83,11.52263432]
[1732207171744,20.0,249.91,249.81,11.52263432]
[1732207171944,4.0016,249.9,249.81,15.52553432]
[1732207172242,11.52263432,249.84,249.76,9.0672]
[1732207172463,11.52263432,249.82,249.75,4.004]
[1732207172696,11.52263432,249.82,249.74,14.0141]
[1732207173868,4.003,249.81,249.74,10.01]
[1732207174046,11.52263432,249.8,249.72,4.0043]
[1732207175152,15.52583432,249.8,249.72,4.0043]
[1732207175455,15.52583432,249.8,249.71,14.0162]
[1732207176162,15.52583432,249.8,249.71,10.0116]
[1732207176562,4.0029,249.82,249.74,11.52263432]
[1732207176760,25.5756,249.86,249.78,11.52263432]
[1732207177350,25.5756,249.86,249.8,11.52263432]
[1732207177872,4.0023,249.86,249.8,11.52263432]
[1732207178651,4.002,249.88,249.8,11.52263432]
[1732207178861,11.52263432,249.86,249.76,14.0134]
[1732207179060,11.52263432,249.86,249.77,11.52263432]
[1732207179255,4.0024,249.85,249.77,15.52623432]
[1732207182074,4.0008,249.95,249.83,11.52263432]
[1732207182292,11.52263432,249.94,249.85,11.52263432]
[1732207182992,11.02263432,249.94,249.85,11.52263432]
[1732207183084,11.02263432,249.94,249.78,28.6052]
[1732207183085,4.0011,249.93,249.83,11.52263432]
[1732207183383,21.0073,249.98,249.81,21.53003432]
[1732207183676,4.0004,249.97,249.86,11.52263432]
[1732207183920,11.52263432,249.96,249.86,11.52263432]
[1732207184383,11.52263432,249.94,249.86,11.52263432]
[1732207184552,24.0011,249.93,249.86,11.52263432]
[1732207184752,24.0011,249.93,249.85,4.0023]
[1732207185969,4.0002,249.99,249.9,11.52263432]
[1732207186971,11.52263432,249.92,249.85,10.006]
[1732207187178,11.52263432,249.9,249.85,14.0084]
[1732207187477,23.9995,250.03,249.88,23.776884]
[1732207187679,20.0,249.98,249.88,23.776884]
[1732207187921,3.9995,250.03,249.93,11.52263432]
[1732207188077,3.9995,250.03,249.94,23.776884]
[1732207188861,11.52263432,250.02,249.94,23.776884]
[1732207189063,20.0,250.01,249.94,23.776884]
[1732207189900,3.9995,250.03,249.94,23.776884]
[1732207189901,21.6249,250.13,249.97,23.776884]
[1732207189963,11.52263432,250.07,249.97,23.776884]
[1732207190887,23.999,250.06,249.97,23.776884]
[1732207191070,23.999,250.06,249.97,27.777184]
[1732207191261,23.999,250.06,249.98,11.52263432]
[1732207191485,23.999,250.06,249.99,23.776884]
[1732207193600,11.52263432,250.04,249.95,11.52263432]
[1732207193882,21.6249,250.13,249.99,11.52263432]
[1732207194064,11.52263432,250.11,250.02,11.52263432]
[1732207194378,11.52263432,250.11,250.0,11.52263432]
[1732207194579,11.52263432,250.09,250.0,11.52263432]
[1732207194963,11.52263432,250.07,249.99,23.776884]
[1732207195173,3.998,250.12,249.96,11.52263432]
[1732207195174,11.52263432,250.05,249.96,11.52263432]
[1732207195571,3.9993,250.04,249.94,11.52263432]
[1732207195757,11.52263432,250.03,249.94,11.52263432]
[1732207196837,23.9996,250.02,249.94,11.52263432]
[1732207197200,23.9996,250.02,249.95,23.776884]
[1732207197326,23.9996,250.02,249.94,11.52263432]
[1732207198263,23.9996,250.02,249.92,11.52263432]
[1732207198677,3.9982,250.11,250.01,11.52263432]
[1732207198880,3.9982,250.11,250.0,23.776884]
[1732207198881,3.9982,250.11,250.03,11.52263432]
[1732207199265,3.9982,250.11,250.01,11.52263432]
[1732207199461,11.52263432,250.1,250.02,23.776884]
[1732207199669,11.52263432,250.12,250.02,23.776884]
[1732207199890,20.0,250.11,250.02,23.776884]
[1732207200402,20.0,250.11,250.03,11.52263432]
[1732207202066,3.9984,250.1,250.03,11.52263432]
[1732207202427,3.9984,250.1,250.02,23.776884]
[1732207202790,15.52103432,250.1,250.0,23.776884]
[1732207202999,15.52103432,250.1,249.99,11.52263432]
[1732207203288,11.52263432,250.04,249.95,20.0]
[1732207203472,11.52263432,250.04,249.96,11.52263432]
[1732207203789,11.52263432,250.07,249.98,11.52263432]
[1732207203989,3.999,250.06,249.98,11.52263432]
[1732207204413,11.52263432,250.05,249.95,30.002]
[1732207204604,3.999,250.06,249.98,11.52263432]
[1732207204898,3.999,250.06,249.97,11.52263432]
[1732207205100,3.999,250.06,249.99,11.52263432]
[1732207207993,3.999,250.06,249.98,11.52263432]
[1732207208435,19.9856,250.18,249.98,11.52263432]
[1732207208632,3.9972,250.17,250.06,11.52263432]
[1732207208875,15.51983432,250.17,250.06,11.52263432]
[1732207209121,15.51983432,250.17,250.08,11.52263432]
[1732207209996,20.0,250.16,250.08,11.52263432]
[1732207210216,20.0,250.16,250.09,23.776884]
[1732207210509,15.51983432,250.17,250.09,23.776884]
[1732207211005,3.9972,250.17,250.09,23.776884]
[1732207211309,11.52263432,250.17,250.09,23.776884]
[1732207211698,3.9969,250.19,250.09,23.776884]
[1732207211699,3.9969,250.19,250.12,23.776884]
[1732207212329,3.9969,250.19,250.14,23.776884]
[1732207213282,11.52263432,250.23,250.15,11.52263432]
[1732207213483,15.51863432,250.25,250.17,11.52263432]
[1732207214302,15.51863432,250.25,250.18,23.776884]
[1732207214514,3.996,250.25,250.18,23.776884]
[1732207214712,15.51863432,250.25,250.18,23.776884]
[1732207214920,11.52263432,250.23,250.18,23.776884]
[1732207215089,11.52263432,250.23,250.15,11.52263432]
[1732207215090,3.9964,250.22,250.16,23.776884]
[1732207215289,3.9964,250.22,250.15,11.52263432]
[1732207215842,3.9964,250.22,250.16,23.776884]
[1732207216037,3.9964,250.22,250.17,11.52263432]
[1732207216226,3.9962,250.24,250.18,23.776884]
[1732207216996,3.9959,250.26,250.19,11.52263432]
[1732207217192,3.9959,250.26,250.2,23.776884]
[1732207218323,3.9959,250.26,250.21,11.52263432]
[1732207218693,3.9959,250.26,250.19,11.52263432]
[1732207219013,3.9947,250.33,250.26,23.776884]
[1732207219213,15.51733432,250.33,250.26,23.776884]
[1732207219724,3.9947,250.33,250.26,23.776884]
[1732207219892,11.52263432,250.37,250.28,23.776884]
[1732207220099,3.994,250.37,250.3,23.776884]
[1732207220404,3.994,250.37,250.28,23.776884]
[1732207220598,3.9938,250.39,250.31,11.52263432]
[1732207220799,3.9938,250.39,250.32,23.776884]
[1732207221113,3.9938,250.39,250.33,23.776884]
[1732207221317,3.9934,250.41,250.33,23.776884]
[1732207221526,3.9934,250.41,250.34,19.89087944]
[1732207222130,3.9934,250.41,250.37,23.776884]
[1732207222300,23.88327944,250.47,250.39,23.776884]
[1732207223906,3.9924,250.47,250.4,19.89087944]
[1732207224140,3.9924,250.47,250.38,23.776884]
[1732207224311,2.0387,250.51,250.47,23.776884]
[1732207224515,29.86777944,250.58,250.47,23.776884]
[1732207224516,3.9908,250.58,250.53,23.776884]
[1732207224759,3.9908,250.58,250.54,19.89087944]
[1732207225028,3.9905,250.59,250.54,43.66776344]
[1732207225783,3.9909,250.57,250.54,43.66776344]
[1732207225931,3.9905,250.6,250.54,43.66776344]
[1732207226160,19.89087944,250.62,250.54,43.66776344]
[1732207226325,3.9903,250.61,250.55,23.776884]
[1732207227006,3.9903,250.61,250.56,19.89087944]
[1732207227223,3.9903,250.61,250.57,23.776884]
[1732207227613,19.89087944,250.64,250.57,23.776884]
[1732207227825,3.9899,250.63,250.57,23.776884]
[1732207228753,19.89087944,250.63,250.57,23.776884]
[1732207229288,19.89087944,250.63,250.55,23.776884]
[1732207230144,20.0,250.67,250.53,23.776884]
[1732207230145,19.89087944,250.61,250.53,23.776884]
[1732207230316,19.89087944,250.61,250.54,19.89087944]
[1732207230526,19.89087944,250.61,250.55,23.776884]
[1732207230923,19.89087944,250.63,250.55,23.776884]
[1732207231115,19.89087944,250.64,250.53,23.776884]
[1732207231337,19.89087944,250.61,250.51,23.776884]
[1732207231546,19.89087944,250.63,250.56,19.89087944]
[1732207231846,19.89087944,250.65,250.57,19.89087944]
[1732207232222,3.9897,250.64,250.57,19.89087944]
[1732207233339,19.89087944,250.61,250.55,23.776884]
[1732207233547,40.88667944,250.57,250.44,9.982]
[1732207233767,19.89087944,250.52,250.43,19.89087944]
[1732207234940,3.9918,250.51,250.43,19.89087944]
[1732207235129,19.89087944,250.48,250.41,19.89087944]
[1732207235453,19.89087944,250.48,250.29,1.0]
[1732207235454,19.89087944,250.45,250.37,19.89087944]
[1732207235638,19.89087944,250.47,250.39,19.89087944]
[1732207236464,19.89087944,250.49,250.41,19.89087944]
[1732207236622,3.9924,250.47,250.34,3.9944]
[1732207236823,4.55826686,250.7,250.46,19.89087944]
[1732207237134,4.55826686,250.7,250.4,30.3057]
[1732207237135,19.89087944,250.64,250.54,19.89087944]
[1732207237322,19.89087944,250.64,250.56,19.89087944]
[1732207238237,19.89087944,250.62,250.53,23.776884]
[1732207238420,3.9902,250.61,250.53,23.776884]
[1732207238628,3.9902,250.61,250.55,23.776884]
[1732207239036,9.9724,250.69,250.54,19.89087944]
[1732207239037,19.89087944,250.66,250.58,19.89087944]
[1732207239450,19.89087944,250.66,250.59,23.776884]
[1732207239557,3.9891,250.68,250.62,19.89087944]
[1732207240252,3.9891,250.68,250.59,23.776884]
[1732207240461,19.89087944,250.69,250.61,23.776884]
[1732207240752,19.89087944,250.71,250.62,19.89087944]
[1732207240923,3.9885,250.72,250.64,19.89087944]
[1732207241125,3.9885,250.72,250.61,23.776884]
[1732207241126,3.9882,250.74,250.68,19.89087944]
[1732207242154,3.9878,250.76,250.68,19.89087944]
[1732207243156,0.5,250.87,250.59,10.4764]
[1732207243157,8.5901,250.96,250.7,19.89087944]
[1732207243365,9.9651,250.88,250.74,19.89087944]
[1732207243649,19.89087944,250.83,250.74,19.89087944]
[1732207243887,19.89087944,250.85,250.76,19.89087944]
[1732207244248,19.89087944,250.87,250.78,19.89087944]
[1732207244459,3.9837,251.03,250.86,19.89087944]
[1732207244640,3.9837,251.03,250.79,0.59800624]
[1732207244641,23.87457944,251.03,250.94,19.89087944]
[1732207245250,3.9837,251.03,250.94,19.89087944]
[1732207245652,19.89087944,251.05,250.94,19.89087944]
[1732207245653,19.89087944,251.05,250.94,23.87577944]
[1732207245890,19.39087944,251.07,250.94,13.9474]
[1732207246069,23.87357944,251.09,250.98,19.89087944]
[1732207246364,23.87357944,251.09,250.94,13.9474]
[1732207246365,3.9807,251.21,251.08,19.89087944]
[1732207246572,3.9807,251.21,251.12,19.89087944]
[1732207246867,8.6064,251.31,251.14,19.89087944]
[1732207246868,3.9803,251.24,251.14,19.89087944]
[1732207247070,19.89087944,251.27,251.18,19.89087944]
[1732207247661,0.5,251.45,251.14,13.50298243]
[1732207247874,19.89087944,251.33,251.23,19.89087944]
[1732207248166,0.5,251.43,251.23,19.89087944]
[1732207248365,13.9176,251.48,251.27,19.89087944]
[1732207248366,19.89087944,251.35,251.27,19.89087944]
[1732207248971,19.89087944,251.35,251.13,8.4007]
[1732207248972,19.89087944,251.28,251.11,14.438]
[1732207249189,19.89087944,251.24,251.15,19.89087944]
[1732207249476,19.89087944,251.28,251.18,19.89087944]
[1732207250046,19.89087944,251.28,251.11,14.438]
[1732207250047,19.89087944,251.2,251.03,9.9587]
[1732207250370,4.4797,251.27,251.03,9.9587]
[1732207250371,19.89087944,251.12,251.03,9.9587]
[1732207250574,19.89087944,251.11,251.03,9.9587]
[1732207250748,24.4797,251.27,251.03,9.9587]
[1732207250749,32.14026101,251.08,251.03,9.9587]
[1732207251067,32.14026101,251.08,250.99,32.14026101]
[1732207251445,32.14026101,251.16,250.97,3.9844]
[1732207251446,32.14026101,251.06,250.97,32.14026101]
[1732207251646,32.14026101,251.08,250.99,32.14026101]
[1732207252061,32.14026101,251.11,251.02,32.14026101]
[1732207252548,3.9822,251.12,250.98,3.9843]
[1732207252549,32.14026101,251.07,250.98,36.12456101]
[1732207252770,32.14026101,251.09,251.0,32.14026101]
[1732207252964,32.14026101,251.13,251.02,32.14026101]
[1732207253160,32.14026101,251.07,250.96,10.55904431]
[1732207253486,32.14026101,251.17,251.06,32.14026101]
[1732207253766,32.14026101,251.13,251.04,32.14026101]
[1732207253965,32.14026101,251.08,250.99,32.14026101]
[1732207254267,32.14026101,251.08,250.98,32.14026101]
[1732207254577,32.14026101,251.06,250.96,42.10196101]
[1732207255463,3.9823,251.11,251.05,32.14026101]
[1732207255788,0.5,251.3,250.97,1.09741441]
[1732207255789,32.14026101,251.18,251.1,32.14026101]
[1732207255991,32.14026101,251.16,251.08,32.14026101]
[1732207256291,32.14026101,251.16,251.06,32.14026101]
[1732207256390,32.14026101,251.12,251.02,32.14026101]
[1732207256551,33.8297,251.26,251.0,32.14026101]
[1732207256552,32.14026101,251.1,251.0,32.14026101]
[1732207256962,32.14026101,251.16,251.0,32.14026101]
[1732207256963,32.14026101,251.08,251.0,32.14026101]
[1732207257277,32.14026101,251.1,251.02,32.14026101]
[1732207257456,3.9826,251.09,251.02,32.14026101]
[1732207257653,32.14026101,251.12,251.04,32.14026101]
[1732207257851,32.14026101,251.23,251.11,32.14026101]
[1732207258046,36.12026101,251.25,251.16,32.14026101]
[1732207258257,19.8862,251.43,251.23,32.14026101]
[1732207258479,32.14026101,251.35,251.26,32.14026101]
[1732207258670,19.8862,251.43,251.11,0.5]
[1732207258881,0.5,251.41,251.09,0.5]
[1732207259125,1.0,251.41,251.09,0.5]
[1732207259262,0.5,251.41,251.11,0.5]
[1732207259466,13.922,251.4,251.11,20.5]
[1732207259668,13.922,251.4,251.19,32.14026101]
[1732207259669,32.14026101,251.29,251.19,32.14026101]
[1732207260074,32.14026101,251.29,251.11,20.0]
[1732207260075,32.14026101,251.23,251.13,32.14026101]
[1732207260279,32.14026101,251.21,251.11,32.14026101]
[1732207260595,32.14026101,251.21,251.13,32.14026101]
[1732207260781,32.14026101,251.21,251.11,32.14026101]
[1732207261081,32.14026101,251.19,251.11,32.14026101]
[1732207261405,32.14026101,251.15,251.07,32.14026101]
[1732207261876,32.14026101,251.15,251.05,32.14026101]
[1732207262459,32.14026101,251.13,251.03,32.14026101]
[1732207263074,32.14026101,251.17,251.07,32.14026101]
[1732207263287,32.14026101,251.27,251.16,32.14026101]
[1732207263465,32.14026101,251.27,251.18,32.14026101]
[1732207263982,32.14026101,251.27,251.12,3.9821]
[1732207263983,32.14026101,251.27,251.16,32.14026101]
[1732207264181,32.14026101,251.17,251.07,32.14026101]
[1732207265476,3.9815,251.16,251.07,32.14026101]
[1732207265985,32.14026101,251.15,251.05,32.14026101]
[1732207266159,32.14026101,251.13,251.03,32.14026101]
[1732207266364,3.9815,251.16,251.01,32.14026101]
[1732207266365,32.14026101,251.11,251.01,32.14026101]
[1732207267461,32.14026101,251.07,250.97,32.14026101]
[1732207267697,32.14026101,251.05,250.95,32.14026101]
[1732207269282,32.14026101,251.05,250.84,0.5]
[1732207269283,32.14026101,250.99,250.9,32.14026101]
[1732207269485,3.9843,250.98,250.9,32.14026101]
[1732207269962,3.9843,250.98,250.88,32.14026101]
[1732207270158,32.14026101,251.03,250.94,32.14026101]
[1732207270393,32.14026101,251.03,250.85,13.9522]
[1732207270394,32.14026101,251.09,251.0,32.14026101]
[1732207270885,32.14026101,251.02,250.85,13.9522]
[1732207271139,32.14026101,251.02,250.92,32.14026101]
[1732207271560,3.9839,251.01,250.94,32.14026101]
[1732207271755,32.14026101,251.0,250.9,32.14026101]
[1732207271959,32.14026101,251.0,250.92,32.14026101]
[1732207272178,32.14026101,251.0,250.9,32.14026101]
[1732207272373,3.9839,251.01,250.72,0.5]
[1732207272374,32.14026101,250.96,250.86,32.14026101]
[1732207272582,32.14026101,250.98,250.88,32.14026101]
[1732207273356,3.9848,250.95,250.88,32.14026101]
[1732207274785,3.9845,250.97,250.9,32.14026101]
[1732207275271,32.14026101,250.96,250.86,32.14026101]
[1732207275871,32.14026101,250.9,250.87,4.0112622]
[1732207276062,14.4458,250.97,250.81,4.01291507]
[1732207276063,32.14026101,250.88,250.81,4.01291507]
[1732207276260,32.14026101,250.85,250.77,32.14026101]
[1732207276568,9.0893,250.93,250.78,4.01787461]
[1732207276569,32.14026101,250.8,250.78,4.01787461]
[1732207276766,3.9873,250.79,250.73,4.01787461]
[1732207276980,32.14026101,250.8,250.74,4.01787461]
[1732207277268,32.14026101,250.8,250.75,4.01787461]
[1732207277469,32.14026101,250.76,250.71,4.02173038]
[1732207277715,32.14026101,250.74,250.67,4.0241586]
[1732207277878,32.14026101,250.74,250.59,9.9761]
[1732207277879,32.14026101,250.76,250.68,4.0241586]
[1732207278280,32.14026101,250.76,250.59,9.9761]
[1732207278281,32.14026101,250.7,250.69,4.0241586]
[1732207278639,32.14026101,250.7,250.53,9.9785]
[1732207278640,32.14026101,250.7,250.56,32.14026101]
[1732207278840,8.5783,250.74,250.56,32.14026101]
[1732207278841,3.9899,250.63,250.56,32.14026101]
[1732207279095,3.9899,250.63,250.57,3.99504663]
[1732207279096,32.14026101,250.62,250.57,3.99504663]
[1732207279424,3.9899,250.63,250.46,32.14026101]
[1732207279425,32.14026101,250.58,250.46,32.14026101]
[1732207279588,32.14026101,250.55,250.47,4.00209712]
[1732207279947,32.14026101,250.55,250.48,4.00209712]
[1732207280090,32.14026101,250.55,250.49,4.00209712]